bitfinex/quotes_BTCUSD_20251024
["timestamp","ask_amount","ask_price","bid_price","bid_amount"]
[1761292904414,0.34183252,111070.0,111060.0,0.002]
[1761292904623,0.48970206,111070.0,111060.0,0.002]
[1761292904825,0.64998206,111070.0,111060.0,0.002]
[1761292907306,0.67700586,111070.0,111060.0,0.002]
[1761292907512,0.67696586,111070.0,111060.0,0.002]
[1761292910017,0.51672586,111070.0,111060.0,0.002]
[1761292910219,0.36873632,111070.0,111060.0,0.002]
[1761292910404,0.67688586,111070.0,111060.0,0.002]
[1761292911413,0.51672586,111070.0,111060.0,0.002]
[1761292911654,0.67688586,111070.0,111060.0,0.002]
[1761292913597,1.46425353,111070.0,111060.0,0.002]
[1761292913838,1.58210084,111070.0,111060.0,0.002]
[1761292914062,1.80900959,111070.0,111060.0,0.002]
[1761292914485,1.2739513,111070.0,111060.0,0.002]
[1761292914690,1.4918713,111070.0,111060.0,0.002]
[1761292914904,0.18011527,111040.0,111030.0,0.04518885]
[1761292915141,0.64862481,111040.0,111030.0,0.22532034]
[1761292915362,0.52010607,111050.0,111040.0,0.03618228]
[1761292915587,0.3279432,111050.0,111040.0,0.0541938]
[1761292915811,0.81619881,111050.0,111040.0,0.03618228]
[1761292916414,0.18011527,111040.0,111030.0,0.001]
[1761292916618,0.48826481,111040.0,111030.0,0.03718228]
[1761292917900,0.48826481,111040.0,111030.0,0.03618228]
[1761292919048,0.48826481,111040.0,111030.0,0.03818228]
[1761292920364,1.6947429,111040.0,111030.0,0.03818228]
[1761292920533,1.22623336,111040.0,111030.0,0.002]
[1761292920741,0.98866481,111040.0,111030.0,0.002]
[1761292921320,1.0156955,111040.0,111030.0,0.002]
[1761292921497,0.18013149,111030.0,111020.0,0.03618228]
[1761292921757,0.18013149,111030.0,111020.0,0.0529507]
[1761292921958,0.18013149,111030.0,111020.0,0.03618228]
[1761292922407,0.18013149,111030.0,111020.0,0.05295712]
[1761292922942,0.18013149,111030.0,111020.0,0.05495712]
[1761292923335,1.0156955,111040.0,111020.0,0.23510484]
[1761292923336,0.54714596,111040.0,111020.0,0.23510484]
[1761292923536,0.18013149,111030.0,111020.0,0.54325438]
[1761292924614,0.18013149,111030.0,111020.0,0.54125438]
[1761292924827,0.18013149,111030.0,111020.0,0.23510484]
[1761292925224,0.18013149,111030.0,111020.0,0.05295712]
[1761292925435,0.18013149,111030.0,111020.0,0.05495712]
[1761292925678,0.48828103,111030.0,111020.0,0.25311961]
[1761292925872,0.48828103,111030.0,111020.0,0.23510484]
[1761292926728,0.48828103,111030.0,111020.0,0.05495712]
[1761292926944,0.48828103,111030.0,111020.0,0.07297189]
[1761292927698,0.48828103,111030.0,111020.0,0.05495712]
[1761292927844,0.48828103,111030.0,111020.0,0.07297189]
[1761292928668,1.22624958,111030.0,111020.0,0.002]
[1761292928902,1.25328499,111030.0,111020.0,0.002]
[1761292929107,1.27259796,111030.0,111020.0,0.002]
[1761292929739,0.18018018,111000.0,110990.0,0.18920469]
[1761292929949,0.48832972,111000.0,110990.0,0.20601303]
[1761292930165,0.48832972,111000.0,110990.0,0.24219531]
[1761292930810,0.48832972,111000.0,110990.0,0.23318703]
[1761292930994,0.48832972,111000.0,110990.0,0.2343327]
[1761292931609,0.18017612,111010.0,111000.0,0.03618228]
[1761292931811,0.48832566,111010.0,111000.0,0.05299062]
[1761292933163,0.48832566,111010.0,111000.0,0.05499062]
[1761292936345,0.48832566,111010.0,111000.0,0.01880834]
[1761292939032,0.48832566,111010.0,111000.0,0.05499062]
[1761292940620,0.48783594,111010.0,111000.0,0.05499062]
[1761292941571,1.22580449,111010.0,111000.0,0.002]
[1761292941997,1.58029285,111010.0,111000.0,0.002]
[1761292942826,0.52018018,111000.0,110990.0,0.00014567]
[1761292943043,1.29659926,111000.0,110990.0,0.00014567]
[1761292943481,1.32363945,111000.0,110990.0,0.00014567]
[1761292943672,1.33673022,111000.0,110990.0,0.00014567]
[1761292945784,2.15196071,111000.0,110990.0,0.00014567]
[1761292945971,2.67844078,111000.0,110990.0,0.00014567]
[1761292946124,2.76019408,111000.0,110990.0,0.00014567]
[1761292946526,1.83574546,111000.0,110990.0,0.00515539]
[1761292947236,1.83674546,111000.0,110990.0,0.00515539]
[1761292947795,2.23471401,111000.0,110990.0,0.00515539]
[1761292948393,1.92756447,111000.0,110990.0,0.00515539]
[1761292950224,3.09911309,111000.0,110990.0,1e-08]
[1761292950445,3.1414124,111000.0,110990.0,1e-08]
[1761292950683,3.1414124,111000.0,110980.0,1e-08]
[1761292950684,3.11729757,111000.0,110980.0,1e-08]
[1761292950908,0.52921764,110970.0,110960.0,1e-08]
[1761292951124,0.52921764,110970.0,110960.0,8.727e-05]
[1761292951125,1.82830364,110970.0,110960.0,8.727e-05]
[1761292951335,1.77941551,110970.0,110960.0,8.727e-05]
[1761292951555,0.18024513,110960.0,110950.0,0.0002]
[1761292951757,1.61144462,110960.0,110950.0,0.0003315]
[1761292953024,1.24665508,110960.0,110950.0,0.0003315]
[1761292953241,1.40709508,110960.0,110950.0,0.0003315]
[1761292953453,1.38880322,110960.0,110950.0,0.0003315]
[1761292957310,1.38880322,110960.0,110950.0,0.00067149]
[1761292958972,1.69695276,110960.0,110950.0,0.00067149]
[1761292961244,1.53651276,110960.0,110950.0,0.00067149]
[1761292961419,1.75463276,110960.0,110950.0,0.00067149]
[1761292964875,1.1390666,110960.0,110950.0,0.00067149]
[1761292965552,0.82916008,110940.0,110930.0,0.03618228]
[1761292965762,0.98956008,110940.0,110930.0,0.03618228]
[1761292966397,0.68067762,110940.0,110930.0,0.03618228]
[1761292966824,0.98956008,110940.0,110930.0,0.03818228]
[1761292967947,0.64956008,110940.0,110930.0,0.03818228]
[1761292968276,0.34067762,110940.0,110930.0,0.03818228]
[1761292968487,0.64956008,110940.0,110930.0,0.03818228]
[1761292968890,0.64948008,110940.0,110930.0,0.03818228]
[1761292970858,0.18027762,110940.0,110930.0,0.03818228]
[1761292971057,0.64948008,110940.0,110930.0,0.03818228]
[1761292971294,0.64948008,110940.0,110930.0,0.03886242]
[1761292972172,1.04818155,110940.0,110930.0,0.03886242]
[1761292972393,1.04818155,110940.0,110930.0,0.00268014]
[1761292972394,1.38818155,110940.0,110930.0,0.00268014]
[1761292972643,1.40746035,110940.0,110930.0,0.00268014]
[1761292974609,1.49727936,110940.0,110930.0,0.00268014]
[1761292974828,1.09865789,110940.0,110930.0,0.00268014]
[1761292978449,1.12271417,110940.0,110930.0,0.00268014]
[1761292980840,1.12263417,110940.0,110930.0,0.00268014]
[1761292982538,0.81375171,110940.0,110930.0,0.00268014]
[1761292982762,1.12263417,110940.0,110930.0,0.00268014]
[1761292984065,0.96231417,110940.0,110930.0,0.00268014]
[1761292984271,1.12255417,110940.0,110930.0,0.00268014]
[1761292984972,1.12251417,110940.0,110930.0,0.00268014]
[1761292985772,0.91392025,110940.0,110930.0,0.00268014]
[1761292985984,1.09419787,110940.0,110930.0,0.00268014]
[1761292987903,0.78531541,110940.0,110930.0,0.00268014]
[1761292988098,0.69975642,110940.0,110930.0,0.00268014]
[1761292988874,1.00863888,110940.0,110930.0,0.00268014]
[1761292994034,0.69975642,110940.0,110930.0,0.00268014]
[1761292994258,1.00863888,110940.0,110930.0,0.00268014]
[1761292995776,1.03269516,110940.0,110930.0,0.00268014]
[1761292998151,0.7238127,110940.0,110930.0,0.00268014]
[1761292998366,1.03269516,110940.0,110930.0,0.00268014]
[1761292998970,1.43139663,110940.0,110930.0,0.00268014]
[1761292999181,1.46349873,110940.0,110930.0,0.00268014]
[1761292999612,1.52211328,110940.0,110930.0,0.00268014]
[1761292999869,1.46349873,110940.0,110930.0,0.00268014]
[1761293001398,1.43944245,110940.0,110930.0,0.00268014]
[1761293002166,1.80600491,110940.0,110920.0,1e-08]
[1761293002385,1.30860464,110930.0,110920.0,1e-08]
[1761293002594,1.39441334,110930.0,110920.0,1e-08]
[1761293003224,1.39433635,110930.0,110920.0,1e-08]
[1761293003650,0.79809131,110910.0,110900.0,0.0002]
[1761293003851,0.96361896,110910.0,110900.0,0.00068613]
[1761293004214,0.93137334,110910.0,110900.0,0.00068613]
[1761293005008,0.94367839,110910.0,110900.0,0.00068613]
[1761293005855,0.62249088,110910.0,110900.0,0.00068613]
[1761293006065,0.62349088,110910.0,110900.0,0.00068613]
[1761293006216,0.59930666,110910.0,110900.0,0.00068613]
[1761293007586,0.2904242,110910.0,110900.0,0.00068613]
[1761293007758,0.59930666,110910.0,110900.0,0.00068613]
[1761293010629,0.20060519,110910.0,110900.0,0.00068613]
[1761293011047,0.20060519,110910.0,110900.0,0.0017067]
[1761293011258,0.50948765,110910.0,110900.0,0.0017067]
[1761293011966,0.30034219,110910.0,110900.0,0.0017067]
[1761293012173,0.48066858,110910.0,110900.0,0.0017067]
[1761293012592,0.18032639,110910.0,110900.0,0.0017067]
[1761293012869,0.48920885,110910.0,110900.0,0.0017067]
[1761293016630,1.71774945,110910.0,110880.0,0.2002]
[1761293016833,1.23693159,110890.0,110880.0,0.00033159]
[1761293017039,1.39785159,110890.0,110880.0,0.00033159]
[1761293017234,1.39785159,110890.0,110880.0,1e-08]
[1761293017435,1.53892947,110890.0,110880.0,1e-08]
[1761293017650,1.54699087,110890.0,110880.0,0.00100001]
[1761293017849,1.22911966,110890.0,110880.0,0.00100001]
[1761293018098,1.13115761,110890.0,110880.0,0.00100001]
[1761293018334,1.14014636,110890.0,110880.0,1e-08]
[1761293018684,1.14114636,110890.0,110880.0,1e-08]
[1761293018888,1.13515761,110890.0,110860.0,0.0002]
[1761293019066,1.13815636,110870.0,110860.0,0.00034597]
[1761293019269,1.38921537,110870.0,110860.0,0.00034597]
[1761293019475,1.08033291,110870.0,110860.0,0.00034597]
[1761293019905,1.4133027,110870.0,110860.0,0.00034597]
[1761293020525,1.4153027,110870.0,110860.0,0.00134597]
[1761293020734,1.50003321,110870.0,110860.0,0.00134597]
[1761293021070,1.52523321,110870.0,110860.0,0.00134597]
[1761293021278,1.51114587,110870.0,110860.0,0.00134597]
[1761293022721,0.89338095,110870.0,110860.0,0.00134597]
[1761293022939,1.43370678,110870.0,110860.0,0.00134597]
[1761293023167,1.43370678,110870.0,110860.0,0.00270741]
[1761293024100,1.47701039,110870.0,110860.0,0.00270741]
[1761293024570,0.90371925,110870.0,110860.0,0.00270741]
[1761293024776,1.25520381,110870.0,110860.0,0.00270741]
[1761293026634,1.00810381,110870.0,110860.0,0.00270741]
[1761293026851,0.63141925,110870.0,110860.0,0.00270741]
[1761293027059,0.002,110870.0,110860.0,0.41929741]
[1761293027468,0.002,110870.0,110860.0,0.77078197]
[1761293027747,0.002,110870.0,110860.0,0.41929741]
[1761293027969,0.002,110870.0,110860.0,0.77078197]
[1761293028439,0.18937685,110890.0,110870.0,0.21656138]
[1761293028660,0.20859949,110890.0,110870.0,0.21656138]
[1761293028878,0.54859949,110890.0,110880.0,0.0006806]
[1761293029718,0.53037685,110890.0,110880.0,0.0006806]
[1761293029933,0.52937685,110890.0,110880.0,0.0006806]
[1761293031386,0.53037685,110890.0,110880.0,0.0006806]
[1761293032451,0.88186141,110890.0,110880.0,0.0006806]
[1761293033285,0.53037685,110890.0,110880.0,0.0006806]
[1761293033486,0.88186141,110890.0,110880.0,0.0006806]
[1761293034074,1.06149943,110890.0,110880.0,0.0006806]
[1761293034253,0.99093322,110890.0,110880.0,0.0006806]
[1761293034449,1.02699408,110890.0,110880.0,0.0006806]
[1761293035054,0.99892197,110890.0,110880.0,0.0006806]
[1761293035595,1.00192197,110890.0,110880.0,0.0006806]
[1761293035821,1.00292197,110890.0,110880.0,0.0006806]
[1761293036010,0.64244866,110890.0,110880.0,0.0006806]
[1761293036215,0.99393322,110890.0,110880.0,0.0006806]
[1761293037417,1.08375223,110890.0,110880.0,0.0006806]
[1761293037620,0.99393322,110890.0,110880.0,0.0006806]
[1761293038584,0.64244866,110890.0,110880.0,0.0006806]
[1761293038778,0.99393322,110890.0,110880.0,0.0006806]
[1761293039429,0.55262965,110890.0,110880.0,0.0006806]
[1761293039651,0.53337685,110890.0,110880.0,0.0006806]
[1761293041294,0.53037685,110890.0,110880.0,0.0006806]
[1761293041517,0.88086141,110890.0,110880.0,0.0006806]
[1761293041701,0.97168042,110890.0,110880.0,0.0006806]
[1761293045822,0.99095821,110890.0,110880.0,0.0006806]
[1761293046027,0.98995821,110890.0,110880.0,0.0006806]
[1761293046242,0.5396367,110890.0,110880.0,0.2006806]
[1761293046454,0.5416367,110890.0,110880.0,0.2006806]
[1761293046673,0.52235891,110890.0,110880.0,0.0006806]
[1761293046877,0.87384347,110890.0,110880.0,0.0006806]
[1761293047490,0.87184347,110890.0,110880.0,0.0006806]
[1761293047844,0.52135891,110890.0,110880.0,0.0006806]
[1761293049889,0.87284347,110890.0,110880.0,0.0006806]
[1761293050101,0.89212385,110890.0,110880.0,0.0006806]
[1761293050722,0.54063929,110890.0,110880.0,0.0006806]
[1761293051203,0.89212385,110890.0,110880.0,0.0006806]
[1761293053113,0.54063929,110890.0,110880.0,0.0006806]
[1761293054939,0.89212385,110890.0,110880.0,0.0006806]
[1761293056206,0.91620704,110890.0,110880.0,0.0006806]
[1761293056641,1.09584506,110890.0,110880.0,0.0006806]
[1761293056853,1.00602605,110890.0,110880.0,0.0006806]
[1761293057555,0.65454149,110890.0,110880.0,0.0006806]
[1761293057734,1.00602605,110890.0,110880.0,0.0006806]
[1761293058183,1.03827167,110890.0,110880.0,0.0006806]
[1761293058371,1.00602605,110890.0,110880.0,0.0006806]
[1761293059329,1.03827167,110890.0,110880.0,0.0006806]
[1761293060192,1.0653415,110890.0,110880.0,0.0006806]
[1761293062142,1.08962675,110890.0,110880.0,0.0006806]
[1761293062371,1.07034637,110890.0,110880.0,0.0006806]
[1761293062569,1.08968841,110890.0,110880.0,0.0006806]
[1761293063167,1.08868841,110890.0,110880.0,0.0006806]
[1761293063568,1.18050742,110890.0,110880.0,0.0006806]
[1761293064146,1.1482618,110890.0,110880.0,0.0006806]
[1761293066830,0.79677724,110890.0,110880.0,0.0006806]
[1761293067073,1.41530596,110890.0,110880.0,0.0006806]
[1761293068156,1.44751228,110890.0,110880.0,0.0006806]
[1761293068380,0.82898356,110890.0,110880.0,0.0006806]
[1761293068744,1.44751228,110890.0,110880.0,0.0006806]
[1761293069164,0.82898356,110890.0,110880.0,0.0006806]
[1761293069369,1.44751228,110890.0,110880.0,0.0006806]
[1761293070423,0.39916455,110890.0,110880.0,0.0006806]
[1761293070658,0.68421041,110890.0,110880.0,0.0006806]
[1761293070829,1.02421041,110890.0,110880.0,0.0006806]
[1761293071030,0.68273973,110890.0,110880.0,0.0006806]
[1761293071234,0.99200409,110890.0,110880.0,0.0006806]
[1761293071795,0.68273973,110890.0,110880.0,0.0006806]
[1761293072026,0.99200409,110890.0,110880.0,0.0006806]
[1761293072666,0.68273973,110890.0,110880.0,0.0006806]
[1761293072856,0.96493426,110890.0,110880.0,0.0006806]
[1761293074667,0.6556699,110890.0,110880.0,0.0006806]
[1761293075077,0.96493426,110890.0,110880.0,0.0006806]
[1761293075701,0.6556699,110890.0,110880.0,0.0006806]
[1761293075873,1.27419862,110890.0,110880.0,0.0006806]
[1761293076316,0.6556699,110890.0,110880.0,0.0006806]
[1761293076430,0.96493426,110890.0,110880.0,0.0006806]
[1761293076634,1.27419862,110890.0,110880.0,0.0006806]
[1761293078685,1.30640494,110890.0,110880.0,0.0006806]
[1761293078860,0.68787622,110890.0,110880.0,0.0006806]
[1761293079072,1.30640494,110890.0,110880.0,0.0006806]
[1761293079320,1.62465805,110890.0,110880.0,0.0006806]
[1761293079519,0.52039144,110870.0,110860.0,0.00034597]
[1761293079723,1.61371958,110870.0,110860.0,0.00034597]
[1761293079863,1.63792773,110870.0,110860.0,0.00034597]
[1761293080074,1.63792773,110870.0,110860.0,0.00102675]
[1761293080795,1.0617665,110870.0,110860.0,0.00102675]
[1761293081101,1.15358551,110870.0,110860.0,0.00102675]
[1761293083538,1.17257425,110870.0,110860.0,0.00102675]
[1761293084300,1.12420581,110870.0,110860.0,0.00102675]
[1761293084503,1.12220581,110870.0,110860.0,0.00102675]
[1761293084748,1.10621707,110870.0,110860.0,0.00102675]
[1761293084970,1.11620582,110870.0,110860.0,0.00102675]
[1761293085915,1.14031827,110870.0,110860.0,0.00102675]
[1761293086119,1.05049926,110870.0,110860.0,0.00102675]
[1761293086822,1.23898829,110870.0,110860.0,0.00102675]
[1761293087028,1.20677457,110870.0,110860.0,0.00102675]
[1761293087288,0.66665369,110870.0,110860.0,0.00102675]
[1761293087500,1.20677457,110870.0,110860.0,0.00102675]
[1761293087710,1.29659358,110870.0,110860.0,0.00102675]
[1761293088371,1.28760483,110870.0,110860.0,0.00102675]
[1761293088577,0.29355249,110870.0,110860.0,0.00102675]
[1761293088819,0.63355249,110870.0,110860.0,0.00102675]
[1761293089875,1.17367337,110870.0,110860.0,0.00102675]
[1761293090273,0.63355249,110870.0,110860.0,0.00102675]
[1761293093402,0.64254124,110870.0,110860.0,0.00102675]
[1761293093625,0.73236025,110870.0,110860.0,0.00102675]
[1761293093804,1.26349238,110870.0,110860.0,0.00102675]
[1761293094110,1.17367337,110870.0,110860.0,0.00102675]
[1761293094746,0.63355249,110870.0,110860.0,0.00102675]
[1761293098055,0.61421045,110870.0,110860.0,0.00102675]
[1761293098274,0.344,110870.0,110860.0,0.18143447]
[1761293098483,0.18439144,110870.0,110860.0,0.41761675]
[1761293098733,0.18339144,110870.0,110860.0,0.41761675]
[1761293099133,0.18039144,110870.0,110860.0,0.41761675]
[1761293099319,0.18239144,110870.0,110860.0,0.41761675]
[1761293099454,0.27221045,110870.0,110860.0,0.00102675]
[1761293099859,0.27321045,110870.0,110860.0,0.00102675]
[1761293101574,0.27321045,110870.0,110860.0,0.20102675]
[1761293101948,0.27321045,110870.0,110860.0,0.00102675]
[1761293105162,0.09251253,110870.0,110860.0,0.00102675]
[1761293105351,0.27290397,110870.0,110860.0,0.00102675]
[1761293105589,0.27290397,110870.0,110860.0,0.20102675]
[1761293105800,0.27290397,110870.0,110860.0,0.38143447]
[1761293106006,0.00269352,110870.0,110860.0,0.38143447]
[1761293106642,0.18308496,110870.0,110860.0,0.20102675]
[1761293106842,0.18308496,110870.0,110860.0,0.38143447]
[1761293107222,0.00269352,110870.0,110860.0,0.38143447]
[1761293107423,0.18308496,110870.0,110860.0,0.38143447]
[1761293108066,0.00269352,110870.0,110860.0,0.38143447]
[1761293108269,0.00269352,110870.0,110860.0,0.41761675]
[1761293111439,0.00269352,110870.0,110860.0,0.50743576]
[1761293111682,0.00269352,110870.0,110860.0,1.04755664]
[1761293112056,0.00269352,110870.0,110860.0,0.50743576]
[1761293113274,0.00269352,110870.0,110860.0,1.04855664]
[1761293114972,0.00269352,110870.0,110860.0,1.05982837]
[1761293115611,0.00269352,110870.0,110860.0,0.50843576]
[1761293115820,0.00269352,110870.0,110860.0,0.38243447]
[1761293116230,0.00269352,110870.0,110860.0,0.41861675]
[1761293116437,0.00269352,110870.0,110860.0,0.38243447]
[1761293116641,0.00269352,110870.0,110860.0,0.41861675]
[1761293123481,0.00269352,110870.0,110860.0,0.50843576]
[1761293124735,0.00269352,110870.0,110860.0,0.81752474]
[1761293128549,0.00269352,110870.0,110860.0,0.50843576]
[1761293128907,0.00269352,110870.0,110860.0,0.81752474]
[1761293134747,0.00269352,110870.0,110860.0,0.81652474]
[1761293135101,0.00269352,110870.0,110860.0,0.81852474]
[1761293136121,0.00269352,110870.0,110860.0,0.50943576]
[1761293136323,0.00269352,110870.0,110860.0,0.81852474]
[1761293138625,0.00269352,110870.0,110860.0,1.15852474]
[1761293138835,0.00269352,110870.0,110860.0,1.16852473]
[1761293143225,0.30901843,110910.0,110900.0,0.2]
[1761293144316,0.18934711,110910.0,110900.0,0.2]
[1761293144494,0.49843609,110910.0,110900.0,0.2]
[1761293146150,0.18035891,110890.0,110880.0,0.2]
[1761293146354,0.18037518,110880.0,110870.0,0.00034036]
[1761293146560,0.82946416,110880.0,110870.0,0.00048633]
[1761293146779,1.13882876,110880.0,110870.0,0.00048633]
[1761293147606,0.82960197,110880.0,110870.0,0.00048633]
[1761293149164,0.82960197,110880.0,110870.0,0.00148633]
[1761293149563,0.52037518,110880.0,110870.0,0.00148633]
[1761293149813,0.82960197,110880.0,110870.0,0.00148633]
[1761293151413,0.52037518,110880.0,110870.0,0.00148633]
[1761293152503,0.52037518,110880.0,110870.0,0.18187777]
[1761293152931,0.52037518,110880.0,110870.0,0.00148633]
[1761293153140,0.52037518,110880.0,110870.0,0.18187777]
[1761293153338,0.18035891,110890.0,110880.0,0.2]
[1761293157252,0.18035891,110890.0,110880.0,0.50922679]
[1761293159394,0.18035891,110890.0,110880.0,0.68960197]
[1761293159727,0.18035891,110890.0,110880.0,0.50922679]
[1761293160183,0.18035891,110890.0,110880.0,0.69460197]
[1761293160386,0.52935978,110900.0,110880.0,1.00382876]
[1761293160601,0.52935978,110900.0,110880.0,0.69459811]
[1761293161230,0.18035891,110890.0,110880.0,0.73078039]
[1761293161455,0.18035891,110890.0,110880.0,0.72578039]
[1761293161676,0.18035891,110890.0,110880.0,0.73078039]
[1761293163478,0.18035891,110890.0,110880.0,0.72578039]
[1761293163683,0.18035891,110890.0,110880.0,0.73078039]
[1761293163865,0.18035891,110890.0,110880.0,0.4215536]
[1761293164117,0.18035891,110890.0,110880.0,0.73078039]
[1761293164321,0.51454715,110900.0,110880.0,0.73078039]
[1761293164496,0.18035891,110890.0,110880.0,0.73078039]
[1761293165062,0.18035891,110890.0,110880.0,0.55040907]
[1761293165260,0.18035891,110890.0,110880.0,0.73078425]
[1761293165994,0.18035891,110890.0,110880.0,0.42155746]
[1761293166235,0.18035891,110890.0,110880.0,0.73078425]
[1761293167180,0.51454715,110900.0,110880.0,0.73078425]
[1761293167392,0.51454715,110900.0,110890.0,0.01803589]
[1761293168386,0.18035891,110890.0,110880.0,0.73078425]
[1761293168603,0.18035891,110890.0,110880.0,0.41655746]
[1761293168821,0.18035891,110890.0,110880.0,0.72578425]
[1761293170004,0.82377394,110900.0,110880.0,0.72578425]
[1761293170348,0.51454715,110900.0,110880.0,0.72578425]
[1761293170560,0.51454715,110900.0,110890.0,0.01803589]
[1761293170763,0.18035891,110890.0,110880.0,0.42155746]
[1761293170977,0.18035891,110890.0,110880.0,0.73078425]
[1761293171407,0.18035891,110890.0,110880.0,0.72578425]
[1761293171620,0.18035891,110890.0,110880.0,0.73078425]
[1761293171825,0.18035891,110890.0,110880.0,0.55040907]
[1761293172857,0.18035891,110890.0,110880.0,0.23618228]
[1761293173055,0.18035891,110890.0,110880.0,0.54540907]
[1761293173353,0.18035891,110890.0,110880.0,0.24118228]
[1761293173563,0.18035891,110890.0,110880.0,0.55040907]
[1761293173779,0.18035891,110890.0,110880.0,0.24118228]
[1761293174029,0.18035891,110890.0,110880.0,0.55040907]
[1761293174237,0.18035891,110890.0,110880.0,0.73078425]
[1761293174630,0.51454715,110900.0,110880.0,0.42155746]
[1761293174763,0.51454715,110900.0,110890.0,0.30922679]
[1761293175162,0.51454715,110900.0,110890.0,0.18035891]
[1761293175371,0.51454715,110900.0,110890.0,0.4895857]
[1761293176179,0.51454715,110900.0,110890.0,0.18035891]
[1761293176587,0.51454715,110900.0,110880.0,0.73078425]
[1761293176794,0.51454715,110900.0,110890.0,0.004]
[1761293176994,0.51454715,110900.0,110890.0,0.18435891]
[1761293177201,0.17454715,110900.0,110890.0,0.18435891]
[1761293178393,0.17454715,110900.0,110890.0,0.4935857]
[1761293179693,0.18934711,110910.0,110900.0,0.2]
[1761293179929,0.54869352,110910.0,110900.0,0.2]
[1761293180130,0.54869352,110910.0,110900.0,0.50922679]
[1761293180303,0.54869352,110910.0,110900.0,0.2]
[1761293181492,0.54869352,110910.0,110900.0,0.204]
[1761293182937,0.85792031,110910.0,110900.0,0.004]
[1761293183109,0.54869352,110910.0,110900.0,0.004]
[1761293183527,0.94773932,110910.0,110900.0,0.004]
[1761293183734,1.25696611,110910.0,110900.0,0.004]
[1761293183967,0.94773932,110910.0,110900.0,0.004]
[1761293184599,1.25696611,110910.0,110900.0,0.004]
[1761293185155,1.28113689,110910.0,110900.0,0.004]
[1761293186006,1.28113689,110910.0,110900.0,0.254]
[1761293186219,0.9719101,110910.0,110900.0,0.254]
[1761293187310,1.28113689,110910.0,110900.0,0.254]
[1761293188264,0.9719101,110910.0,110900.0,0.254]
[1761293188474,1.28113689,110910.0,110900.0,0.254]
[1761293188689,1.6225774,110910.0,110900.0,0.254]
[1761293188884,0.67072625,110910.0,110900.0,0.254]
[1761293189135,1.36461534,110910.0,110900.0,0.254]
[1761293189340,0.74616176,110910.0,110900.0,0.254]
[1761293189577,1.36461534,110910.0,110900.0,0.254]
[1761293190327,0.74616176,110910.0,110900.0,0.254]
[1761293190536,1.36461534,110910.0,110900.0,0.254]
[1761293191234,1.3162469,110910.0,110900.0,0.254]
[1761293192484,1.03119725,110910.0,110900.0,0.254]
[1761293192903,1.34042404,110910.0,110900.0,0.254]
[1761293193112,0.99898353,110910.0,110900.0,0.254]
[1761293194514,0.68975674,110910.0,110900.0,0.254]
[1761293194704,0.99898353,110910.0,110900.0,0.254]
[1761293194990,0.68975674,110910.0,110900.0,0.254]
[1761293195205,0.99898353,110910.0,110900.0,0.254]
[1761293199106,0.68975674,110910.0,110900.0,0.254]
[1761293199333,0.99898353,110910.0,110900.0,0.254]
[1761293203499,1.30821032,110910.0,110900.0,0.254]
[1761293204180,0.99898353,110910.0,110900.0,0.254]
[1761293204425,1.30821032,110910.0,110900.0,0.254]
[1761293206870,0.99884479,110910.0,110900.0,0.254]
[1761293207803,0.34969374,110910.0,110900.0,0.254]
[1761293208014,0.20863052,110910.0,110900.0,0.254]
[1761293208224,0.54863052,110910.0,110900.0,0.224]
[1761293208649,0.54863052,110910.0,110900.0,0.424]
[1761293209441,0.52928411,110910.0,110900.0,0.424]
[1761293210985,0.83837216,110910.0,110900.0,0.224]
[1761293211347,0.92819117,110910.0,110900.0,0.224]
[1761293211781,0.97459549,110910.0,110900.0,0.224]
[1761293213843,0.66550744,110910.0,110900.0,0.424]
[1761293214008,0.57568843,110910.0,110900.0,0.424]
[1761293214565,0.54862475,110910.0,110900.0,0.424]
[1761293216141,0.52928411,110910.0,110900.0,0.424]
[1761293219800,0.18032639,110910.0,110900.0,0.60434265]
[1761293220198,0.18032639,110910.0,110900.0,0.64052493]
[1761293220401,0.42742398,110920.0,110900.0,0.64052493]
[1761293220896,0.18032639,110910.0,110900.0,0.64052493]
[1761293221319,0.42742398,110920.0,110900.0,0.94961298]
[1761293221551,0.42742398,110920.0,110900.0,0.64152493]
[1761293221752,0.18032639,110910.0,110900.0,0.64152493]
[1761293221912,0.42742398,110920.0,110900.0,0.64152493]
[1761293222320,0.42742398,110920.0,110900.0,0.64052493]
[1761293222732,0.42742398,110920.0,110910.0,0.18032639]
[1761293223314,0.42742398,110920.0,110910.0,0.01803263]
[1761293223701,0.42742398,110920.0,110900.0,0.64152493]
[1761293223920,0.42755528,110920.0,110900.0,0.64152493]
[1761293224347,0.42755528,110920.0,110910.0,0.18032639]
[1761293224560,0.42755528,110920.0,110910.0,0.19835902]
[1761293224758,0.42755528,110920.0,110910.0,0.2345413]
[1761293224964,0.42755528,110920.0,110910.0,0.21650867]
[1761293225186,0.2482313,110920.0,110910.0,0.21650867]
[1761293225603,0.0011313,110920.0,110910.0,0.21650867]
[1761293226531,0.18144143,110920.0,110910.0,0.21650867]
[1761293227258,0.0011313,110920.0,110910.0,0.21750867]
[1761293227487,0.0001313,110920.0,110910.0,0.21750867]
[1761293227926,0.0001313,110920.0,110910.0,0.21950867]
[1761293229412,0.0001313,110920.0,110910.0,0.50932768]
[1761293231334,0.0001313,110920.0,110910.0,0.81841573]
[1761293232585,0.0001313,110920.0,110910.0,1.12750378]
[1761293233030,0.0001313,110920.0,110910.0,0.81841573]
[1761293233455,0.0001313,110920.0,110910.0,1.12750378]
[1761293233864,0.0001313,110920.0,110910.0,0.81841573]
[1761293234074,0.0001313,110920.0,110910.0,0.50932768]
[1761293234297,0.0001313,110920.0,110910.0,0.18332639]
[1761293234782,0.0001313,110920.0,110910.0,0.21950867]
[1761293238215,0.82952948,110920.0,110910.0,0.003]
[1761293238644,0.85658989,110920.0,110910.0,0.003]
[1761293238788,0.86686317,110920.0,110910.0,0.003]
[1761293239147,0.85658989,110920.0,110910.0,0.002]
[1761293239269,1.41545695,110920.0,110910.0,0.002]
[1761293239474,1.12566991,110920.0,110910.0,0.002]
[1761293240106,1.13602853,110920.0,110910.0,0.002]
[1761293240548,1.12566991,110920.0,110910.0,0.002]
[1761293240770,0.52032639,110910.0,110900.0,0.224]
[1761293240947,0.82941444,110910.0,110900.0,0.224]
[1761293242413,0.52032639,110910.0,110900.0,0.224]
[1761293242544,0.52032639,110910.0,110900.0,0.64052493]
[1761293242967,0.34,110910.0,110900.0,0.64052493]
[1761293244042,0.52032639,110910.0,110900.0,0.64052493]
[1761293244181,0.34,110910.0,110900.0,0.64052493]
[1761293245367,0.34,110910.0,110900.0,0.63552493]
[1761293247757,0.18032639,110910.0,110900.0,0.63552493]
[1761293247937,0.18032639,110910.0,110900.0,0.45518228]
[1761293248652,0.18032639,110910.0,110900.0,0.63552493]
[1761293251122,0.18044143,110920.0,110900.0,0.63552493]
[1761293252078,0.0001313,110920.0,110910.0,0.2345413]